[Event "*** Titled Tuesday 3|2 Blitz"]
[Site "Chess.com"]
[Date "2015.11.03"]
[Round "6"]
[White "Blitzstream"]
[Black "Canonkasparov"]
[Result "1/2-1/2"]
[WhiteElo "2409"]
[BlackElo "2370"]
[TimeControl "180+2"]
[EndTime "12:20:59 PST"]
[Termination "Game drawn - insufficient material"]

1. d4 {[%clk 0:03:01.9]} 1... d5 {[%clk 0:03:00.6]} 2. Nf3 {[%clk 0:02:54.8]}
2... Nf6 {[%clk 0:03:00.8]} 3. Bf4 {[%clk 0:02:55.9]} 3... c5 {[%clk 0:03:01.2]}
4. e3 {[%clk 0:02:56.6]} 4... Qb6 {[%clk 0:03:01.5]} 5. Qc1 {[%clk 0:02:57.3]}
5... Nc6 {[%clk 0:03:01.5]} 6. c3 {[%clk 0:02:58.4]} 6... Bf5 {[%clk 0:03:00.9]}
7. Be2 {[%clk 0:02:56.5]} 7... e6 {[%clk 0:03:01.4]} 8. O-O {[%clk 0:02:57.3]}
8... Be7 {[%clk 0:03:01.6]} 9. Nbd2 {[%clk 0:02:58.4]} 9... h6 {[%clk
0:02:59.8]} 10. h3 {[%clk 0:02:59.5]} 10... O-O {[%clk 0:03:00.3]} 11. Re1
{[%clk 0:02:58.4]} 11... Rfc8 {[%clk 0:03:00.3]} 12. Ne5 {[%clk 0:02:42.7]}
12... cxd4 {[%clk 0:02:49.4]} 13. Nxc6 {[%clk 0:02:43]} 13... bxc6 {[%clk
0:02:49.3]} 14. exd4 {[%clk 0:02:40.1]} 14... c5 {[%clk 0:02:49.7]} 15. Be3
{[%clk 0:02:26.7]} 15... a5 {[%clk 0:02:42.2]} 16. dxc5 {[%clk 0:01:39.9]} 16...
Bxc5 {[%clk 0:02:41.7]} 17. Nb3 {[%clk 0:01:26.8]} 17... Bxe3 {[%clk 0:02:38.1]}
18. Qxe3 {[%clk 0:01:28.7]} 18... Qxe3 {[%clk 0:02:38.1]} 19. fxe3 {[%clk
0:01:30.6]} 19... a4 {[%clk 0:02:36.6]} 20. Nd4 {[%clk 0:01:30.2]} 20... Bh7
{[%clk 0:02:36.5]} 21. Nb5 {[%clk 0:01:08]} 21... Rab8 {[%clk 0:02:28.2]} 22. b3
{[%clk 0:00:58.9]} 22... axb3 {[%clk 0:02:19]} 23. axb3 {[%clk 0:01:00.8]} 23...
Ne4 {[%clk 0:02:19.6]} 24. c4 {[%clk 0:01:00.2]} 24... dxc4 {[%clk 0:02:16.1]}
25. bxc4 {[%clk 0:01:02.1]} 25... g5 {[%clk 0:02:08.9]} 26. Ra7 {[%clk
0:01:00.7]} 26... Ng3 {[%clk 0:02:07.3]} 27. Bh5 {[%clk 0:00:54.3]} 27... Nxh5
{[%clk 0:02:06.7]} 28. Nd6 {[%clk 0:00:55.3]} 28... Rf8 {[%clk 0:02:05.9]} 29.
c5 {[%clk 0:00:56.5]} 29... Rb2 {[%clk 0:01:54.7]} 30. Rc1 {[%clk 0:00:54.8]}
30... Rd2 {[%clk 0:01:47]} 31. Nc4 {[%clk 0:00:55]} 31... Rd5 {[%clk 0:01:43.7]}
32. Nb6 {[%clk 0:00:54.9]} 32... Rdd8 {[%clk 0:01:25.3]} 33. c6 {[%clk 0:00:55]}
33... Rd6 {[%clk 0:01:05.9]} 34. Rd7 {[%clk 0:00:42.6]} 34... Rxd7 {[%clk
0:00:58.6]} 35. Nxd7 {[%clk 0:00:38.3]} 35... Rc8 {[%clk 0:00:56.6]} 36. c7
{[%clk 0:00:34.1]} 36... Ng3 {[%clk 0:00:38.5]} 37. Kh2 {[%clk 0:00:33.2]} 37...
Nf1+ {[%clk 0:00:33.2]} 38. Rxf1 {[%clk 0:00:14.8]} 38... Rxc7 {[%clk
0:00:33.5]} 39. Ne5 {[%clk 0:00:15.9]} 39... Kg7 {[%clk 0:00:32.1]} 40. Nf3
{[%clk 0:00:14.6]} 40... Be4 {[%clk 0:00:31.4]} 41. Nd2 {[%clk 0:00:14]} 41...
Bd5 {[%clk 0:00:31.7]} 42. e4 {[%clk 0:00:14.9]} 42... Bb7 {[%clk 0:00:31.9]}
43. Rf2 {[%clk 0:00:16]} 43... Rc2 {[%clk 0:00:31.9]} 44. Kg3 {[%clk 0:00:17]}
44... h5 {[%clk 0:00:32.4]} 45. h4 {[%clk 0:00:18]} 45... f6 {[%clk 0:00:32.6]}
46. hxg5 {[%clk 0:00:17.2]} 46... fxg5 {[%clk 0:00:33.2]} 47. Re2 {[%clk
0:00:17.2]} 47... Ba6 {[%clk 0:00:29.7]} 48. Rf2 {[%clk 0:00:18.2]} 48... Bd3
{[%clk 0:00:27.2]} 49. Kf3 {[%clk 0:00:17.2]} 49... Kg6 {[%clk 0:00:23.2]} 50.
Ke3 {[%clk 0:00:18.3]} 50... Ba6 {[%clk 0:00:23.4]} 51. e5 {[%clk 0:00:19]}
51... Rc3+ {[%clk 0:00:23.1]} 52. Kd4 {[%clk 0:00:18.8]} 52... Rd3+ {[%clk
0:00:23.4]} 53. Ke4 {[%clk 0:00:20.2]} 53... Rg3 {[%clk 0:00:23.4]} 54. Rf6+
{[%clk 0:00:21.2]} 54... Kg7 {[%clk 0:00:24.1]} 55. Rxe6 {[%clk 0:00:22.5]}
55... Bb7+ {[%clk 0:00:24.5]} 56. Kd4 {[%clk 0:00:18.5]} 56... Bxg2 {[%clk
0:00:24.9]} 57. Re7+ {[%clk 0:00:17.9]} 57... Kf8 {[%clk 0:00:24.1]} 58. Ra7
{[%clk 0:00:18.7]} 58... h4 {[%clk 0:00:24.6]} 59. e6 {[%clk 0:00:20.1]} 59...
h3 {[%clk 0:00:13.7]} 60. Ke5 {[%clk 0:00:20.5]} 60... Re3+ {[%clk 0:00:13.8]}
61. Kf6 {[%clk 0:00:21.2]} 61... Kg8 {[%clk 0:00:13.4]} 62. Rg7+ {[%clk
0:00:21.8]} 62... Kh8 {[%clk 0:00:14.1]} 63. Rxg5 {[%clk 0:00:20]} 63... Kh7
{[%clk 0:00:10.2]} 64. e7 {[%clk 0:00:19.9]} 64... Kh6 {[%clk 0:00:10.4]} 65.
Rg8 {[%clk 0:00:21]} 65... Kh5 {[%clk 0:00:11.1]} 66. e8=Q+ {[%clk 0:00:20.5]}
66... Rxe8 {[%clk 0:00:11.5]} 67. Rxe8 {[%clk 0:00:22.4]} 67... Kg4 {[%clk
0:00:12]} 68. Rg8+ {[%clk 0:00:22.9]} 68... Kf4 {[%clk 0:00:11.5]} 69. Rh8
{[%clk 0:00:20.7]} 69... Kg3 {[%clk 0:00:12.2]} 70. Rg8+ {[%clk 0:00:22.2]}
70... Kf4 {[%clk 0:00:13]} 71. Rh8 {[%clk 0:00:23]} 71... Kg3 {[%clk 0:00:13.9]}
72. Rg8+ {[%clk 0:00:13.5]} 72... Kf4 {[%clk 0:00:14.6]} 73. Rh8 {[%clk
0:00:11.4]} 73... Kg3 {[%clk 0:00:15.4]} 74. Ke5 {[%clk 0:00:12.6]} 74... h2
{[%clk 0:00:16]} 75. Ne4+ {[%clk 0:00:14]} 75... Bxe4 {[%clk 0:00:13.3]} 76.
Kxe4 {[%clk 0:00:15.9]} 76... Kg2 {[%clk 0:00:14.2]} 77. Rg8+ {[%clk 0:00:05.4]}
77... Kf2 {[%clk 0:00:13.3]} 78. Rf8+ {[%clk 0:00:05.7]} 78... Kg2 {[%clk
0:00:13.9]} 79. Rg8+ {[%clk 0:00:06.9]} 79... Kf2 {[%clk 0:00:14.7]} 80. Rh8
{[%clk 0:00:08.3]} 80... Kg2 {[%clk 0:00:15.2]} 81. Ke3 {[%clk 0:00:08.4]} 81...
h1=Q {[%clk 0:00:14.9]} 82. Rxh1 {[%clk 0:00:06.3]} 82... Kxh1 {[%clk
0:00:15.5]} 1/2-1/2

[Event "*** Titled Tuesday 3|2 Blitz"]
[Site "Chess.com"]
[Date "2015.11.03"]
[Round "7"]
[White "yurisolo"]
[Black "Saitama_Hero"]
[Result "0-1"]
[WhiteElo "2457"]
[BlackElo "2202"]
[TimeControl "180+2"]
[EndTime "12:28:48 PST"]
[Termination "Saitama_Hero won by resignation"]

1. e4 {[%clk 0:03:01.9]} 1... c5 {[%clk 0:02:56]} 2. d4 {[%clk 0:03:03.1]} 2...
cxd4 {[%clk 0:02:54.7]} 3. Nf3 {[%clk 0:03:05]} 3... g6 {[%clk 0:02:53.6]} 4.
Qxd4 {[%clk 0:03:05.1]} 4... Nf6 {[%clk 0:02:54.2]} 5. Nc3 {[%clk 0:03:05.5]}
5... Nc6 {[%clk 0:02:53.7]} 6. Qa4 {[%clk 0:03:07]} 6... d6 {[%clk 0:02:53.6]}
7. e5 {[%clk 0:03:08.5]} 7... dxe5 {[%clk 0:02:55.5]} 8. Nxe5 {[%clk 0:03:10.3]}
8... Qd4 {[%clk 0:02:56.7]} 9. Nxc6 {[%clk 0:03:10]} 9... Qxa4 {[%clk
0:02:58.3]} 10. Nxa4 {[%clk 0:03:11.9]} 10... bxc6 {[%clk 0:02:59.9]} 11. b3
{[%clk 0:03:13.6]} 11... Bf5 {[%clk 0:02:42.5]} 12. c4 {[%clk 0:03:13]} 12...
Rd8 {[%clk 0:02:37.2]} 13. Be2 {[%clk 0:03:11.5]} 13... Ne4 {[%clk 0:02:23.4]}
14. f3 {[%clk 0:03:09]} 14... Nd6 {[%clk 0:02:08.5]} 15. Bb2 {[%clk 0:03:06]}
15... f6 {[%clk 0:02:08.8]} 16. Kf2 {[%clk 0:02:59.6]} 16... Bh6 {[%clk
0:02:08.9]} 17. Rad1 {[%clk 0:02:59.2]} 17... Kf7 {[%clk 0:02:10]} 18. Nc5
{[%clk 0:02:54]} 18... Bc2 {[%clk 0:01:55.6]} 19. Ra1 {[%clk 0:02:45.7]} 19...
Nf5 {[%clk 0:01:54.5]} 20. Bc1 {[%clk 0:02:43]} 20... Bf8 {[%clk 0:01:42.5]} 21.
Ba3 {[%clk 0:02:21.8]} 21... Bh6 {[%clk 0:01:40.4]} 22. Bc1 {[%clk 0:02:22.1]}
22... Bf8 {[%clk 0:01:39.6]} 23. g4 {[%clk 0:02:23.2]} 23... e5 {[%clk
0:01:30.3]} 24. Be3 {[%clk 0:02:24.3]} 24... Nxe3 {[%clk 0:01:30.2]} 25. Nb7
{[%clk 0:02:20.1]} 25... Rd7 {[%clk 0:01:28.2]} 26. Kxe3 {[%clk 0:02:19.5]}
26... Rxb7 {[%clk 0:01:28.5]} 27. Kd2 {[%clk 0:02:19.6]} 27... Bxb3 {[%clk
0:01:09.1]} 28. axb3 {[%clk 0:02:21.5]} 28... Bb4+ {[%clk 0:01:09]} 29. Kc2
{[%clk 0:02:21.8]} 29... Rd8 {[%clk 0:01:09.3]} 30. Rhd1 {[%clk 0:02:20.3]}
30... Rbd7 {[%clk 0:01:09.4]} 31. Rxd7+ {[%clk 0:02:13.2]} 31... Rxd7 {[%clk
0:01:11.3]} 32. Ra6 {[%clk 0:02:11.3]} 32... Rd2+ {[%clk 0:01:10.5]} 33. Kc1
{[%clk 0:02:11.7]} 33... Rxe2 {[%clk 0:01:11.7]} 34. Rxa7+ {[%clk 0:02:10.2]}
34... Ke6 {[%clk 0:01:12.7]} 35. Rxh7 {[%clk 0:02:10.7]} 35... Rf2 {[%clk
0:01:06.6]} 36. Rh3 {[%clk 0:02:10.3]} 36... Kd6 {[%clk 0:01:02.5]} 37. Rh6
{[%clk 0:02:09.3]} 37... Bd2+ {[%clk 0:00:59.8]} 0-1

[Event "*** Titled Tuesday 3|2 Blitz"]
[Site "Chess.com"]
[Date "2015.11.03"]
[Round "7"]
[White "Boryboy"]
[Black "1random"]
[Result "1-0"]
[WhiteElo "2464"]
[BlackElo "1942"]
[TimeControl "180+2"]
[EndTime "12:29:29 PST"]
[Termination "Boryboy won by resignation"]

1. d4 {[%clk 0:03:01.9]} 1... Nf6 {[%clk 0:03:00.9]} 2. Nf3 {[%clk 0:03:03.1]}
2... d5 {[%clk 0:03:02]} 3. c4 {[%clk 0:03:03.7]} 3... e6 {[%clk 0:03:03.5]} 4.
g3 {[%clk 0:03:05.1]} 4... Be7 {[%clk 0:03:04.5]} 5. Bg2 {[%clk 0:03:06.7]} 5...
O-O {[%clk 0:03:06.2]} 6. O-O {[%clk 0:03:08.2]} 6... dxc4 {[%clk 0:03:07.7]} 7.
Ne5 {[%clk 0:03:08.8]} 7... Nc6 {[%clk 0:03:08.8]} 8. Bxc6 {[%clk 0:03:10]} 8...
bxc6 {[%clk 0:03:10.7]} 9. Nxc6 {[%clk 0:03:11.6]} 9... Qe8 {[%clk 0:03:12.2]}
10. Nxe7+ {[%clk 0:03:13.2]} 10... Qxe7 {[%clk 0:03:14.1]} 11. Qa4 {[%clk
0:03:14.8]} 11... e5 {[%clk 0:03:14.7]} 12. dxe5 {[%clk 0:03:16.7]} 12... Qxe5
{[%clk 0:03:16.5]} 13. Qxc4 {[%clk 0:03:18.4]} 13... Be6 {[%clk 0:03:17.7]} 14.
Qd3 {[%clk 0:03:20]} 14... Rad8 {[%clk 0:03:18.8]} 15. Qe3 {[%clk 0:03:21.6]}
15... Qh5 {[%clk 0:03:20]} 16. f3 {[%clk 0:03:22.1]} 16... Rfe8 {[%clk
0:03:09.6]} 17. Qg5 {[%clk 0:03:22.6]} 17... Qh3 {[%clk 0:03:09.7]} 18. Qc5
{[%clk 0:03:22.7]} 18... Bc8 {[%clk 0:01:50.5]} 19. Nc3 {[%clk 0:03:16]} 19...
Ba6 {[%clk 0:01:51.3]} 20. Qf2 {[%clk 0:03:13.2]} 20... Nd5 {[%clk 0:01:50.1]}
21. Ne4 {[%clk 0:03:07.3]} 21... f5 {[%clk 0:01:41.7]} 22. Ng5 {[%clk
0:02:54.3]} 22... Qh5 {[%clk 0:01:40.5]} 23. Re1 {[%clk 0:02:37.3]} 23... h6
{[%clk 0:01:34.6]} 24. Qxa7 {[%clk 0:02:38.3]} 24... Bxe2 {[%clk 0:01:30.4]} 25.
Qf2 {[%clk 0:02:38.8]} 25... Ba6 {[%clk 0:00:34.4]} 26. Ne6 {[%clk 0:02:38.1]}
26... Qf7 {[%clk 0:00:32.7]} 27. Nc5 {[%clk 0:02:34.8]} 27... Rxe1+ {[%clk
0:00:31.7]} 28. Qxe1 {[%clk 0:02:36.7]} 28... Re8 {[%clk 0:00:32.8]} 29. Qd1
{[%clk 0:02:28.6]} 29... Be2 {[%clk 0:00:29.6]} 30. Qb3 {[%clk 0:02:29.9]} 30...
Kh7 {[%clk 0:00:12.4]} 31. Bd2 {[%clk 0:02:30.2]} 31... f4 {[%clk 0:00:09.8]}
32. Re1 {[%clk 0:02:18.6]} 32... fxg3 {[%clk 0:00:10.2]} 33. hxg3 {[%clk
0:02:19.9]} 33... Qg6 {[%clk 0:00:09.5]} 34. Kf2 {[%clk 0:02:19.9]} 34... Bxf3
{[%clk 0:00:06.8]} 35. Rxe8 {[%clk 0:02:18.2]} 35... Qxe8 {[%clk 0:00:06.6]} 36.
Qxf3 {[%clk 0:02:19.3]} 36... Qc6 {[%clk 0:00:05.6]} 37. b4 {[%clk 0:02:17.3]}
37... Nxb4 {[%clk 0:00:05.6]} 38. Bxb4 {[%clk 0:02:17.9]} 38... Qb5 {[%clk
0:00:07]} 39. Qd3+ {[%clk 0:02:18.9]} 1-0

[Event "*** Titled Tuesday 3|2 Blitz"]
[Site "Chess.com"]
[Date "2015.11.03"]
[Round "7"]
[White "ilmago"]
[Black "bugsbunny444"]
[Result "0-1"]
[WhiteElo "1919"]
[BlackElo "2334"]
[TimeControl "180+2"]
[EndTime "12:30:03 PST"]
[Termination "bugsbunny444 won by resignation"]

1. e4 {[%clk 0:03:01.9]} 1... e6 {[%clk 0:03:01]} 2. d3 {[%clk 0:03:02.1]} 2...
d5 {[%clk 0:03:02.7]} 3. Nc3 {[%clk 0:03:01.4]} 3... dxe4 {[%clk 0:03:01.6]} 4.
Nxe4 {[%clk 0:03:01.5]} 4... b6 {[%clk 0:02:57]} 5. Be2 {[%clk 0:02:59.5]} 5...
Bb7 {[%clk 0:02:53.2]} 6. Bf3 {[%clk 0:03:00.4]} 6... Nc6 {[%clk 0:02:49]} 7.
Nh3 {[%clk 0:03:00.6]} 7... Be7 {[%clk 0:02:30.2]} 8. O-O {[%clk 0:02:59.7]}
8... Rb8 {[%clk 0:02:27]} 9. Bf4 {[%clk 0:02:55.3]} 9... Nd4 {[%clk 0:02:18.8]}
10. Neg5 {[%clk 0:02:46.1]} 10... Nxf3+ {[%clk 0:02:17.8]} 11. Nxf3 {[%clk
0:02:46.6]} 11... h6 {[%clk 0:02:09.6]} 12. Be5 {[%clk 0:02:36]} 12... Nf6
{[%clk 0:02:10.3]} 13. Qe2 {[%clk 0:02:26.7]} 13... O-O {[%clk 0:02:05.6]} 14.
Rad1 {[%clk 0:02:25.9]} 14... Ng4 {[%clk 0:02:00.3]} 15. Bc3 {[%clk 0:02:25.2]}
15... Qd5 {[%clk 0:01:35.5]} 16. Nf4 {[%clk 0:02:24.5]} 16... Qf5 {[%clk
0:01:36.2]} 17. g3 {[%clk 0:01:57]} 17... Bxf3 {[%clk 0:01:13.2]} 18. Qxf3
{[%clk 0:01:55.4]} 18... e5 {[%clk 0:01:14.3]} 19. Qd5 {[%clk 0:01:46.6]} 19...
c6 {[%clk 0:01:10.1]} 20. Qxc6 {[%clk 0:01:14.2]} 20... exf4 {[%clk 0:01:11]}
21. h3 {[%clk 0:01:14.1]} 21... Ne5 {[%clk 0:00:45.4]} 22. Bxe5 {[%clk
0:01:12.6]} 22... Qxe5 {[%clk 0:00:46.2]} 23. Rfe1 {[%clk 0:01:13.6]} 23... Qf6
{[%clk 0:00:34.1]} 24. Qe4 {[%clk 0:01:11.5]} 24... fxg3 {[%clk 0:00:26.4]} 25.
fxg3 {[%clk 0:00:56]} 25... Bc5+ {[%clk 0:00:27.3]} 26. d4 {[%clk 0:00:56]}
26... Rbe8 {[%clk 0:00:27.7]} 27. Qd3 {[%clk 0:00:53.8]} 27... Bxd4+ {[%clk
0:00:25]} 28. Kg2 {[%clk 0:00:51.5]} 28... Qf2+ {[%clk 0:00:25.1]} 29. Kh1
{[%clk 0:00:52]} 29... Rxe1+ {[%clk 0:00:25.6]} 0-1

[Event "*** Titled Tuesday 3|2 Blitz"]
[Site "Chess.com"]
[Date "2015.11.03"]
[Round "7"]
[White "kikydu96"]
[Black "BjarkeSahl"]
[Result "0-1"]
[WhiteElo "2237"]
[BlackElo "2159"]
[TimeControl "180+2"]
[EndTime "12:30:25 PST"]
[Termination "BjarkeSahl won by resignation"]

1. b3 {[%clk 0:03:01.9]} 1... Nf6 {[%clk 0:02:56.9]} 2. Bb2 {[%clk 0:03:02.3]}
2... g6 {[%clk 0:02:58.5]} 3. Bxf6 {[%clk 0:03:03.3]} 3... exf6 {[%clk
0:02:58.4]} 4. c4 {[%clk 0:03:04.9]} 4... f5 {[%clk 0:02:58.6]} 5. Nc3 {[%clk
0:03:06.1]} 5... Bg7 {[%clk 0:03:00.2]} 6. Rc1 {[%clk 0:03:07.7]} 6... O-O
{[%clk 0:03:01.8]} 7. e3 {[%clk 0:03:09]} 7... d6 {[%clk 0:03:03]} 8. Nf3 {[%clk
0:03:10]} 8... Nd7 {[%clk 0:03:04.5]} 9. Be2 {[%clk 0:03:11.3]} 9... Nf6 {[%clk
0:03:06]} 10. O-O {[%clk 0:03:12.4]} 10... Re8 {[%clk 0:03:07.4]} 11. d4 {[%clk
0:03:12.6]} 11... Ne4 {[%clk 0:03:06.9]} 12. Nxe4 {[%clk 0:03:11.5]} 12... Rxe4
{[%clk 0:03:05.6]} 13. Nd2 {[%clk 0:03:12]} 13... Re7 {[%clk 0:03:04.2]} 14. Bf3
{[%clk 0:03:13.6]} 14... c6 {[%clk 0:03:05.1]} 15. b4 {[%clk 0:03:13.9]} 15...
Bd7 {[%clk 0:03:02.4]} 16. d5 {[%clk 0:03:11.5]} 16... Qc7 {[%clk 0:03:01.4]}
17. Nb3 {[%clk 0:03:11.5]} 17... Rae8 {[%clk 0:02:59.2]} 18. Nd4 {[%clk
0:03:06.3]} 18... Re5 {[%clk 0:02:51.6]} 19. dxc6 {[%clk 0:03:06]} 19... bxc6
{[%clk 0:02:52]} 20. b5 {[%clk 0:03:07.4]} 20... c5 {[%clk 0:02:48.9]} 21. Nc6
{[%clk 0:03:08.1]} 21... Bxc6 {[%clk 0:02:34.8]} 22. Bxc6 {[%clk 0:03:08]} 22...
R8e7 {[%clk 0:02:32.3]} 23. Qd2 {[%clk 0:03:01.7]} 23... f4 {[%clk 0:02:30.3]}
24. e4 {[%clk 0:02:53.3]} 24... g5 {[%clk 0:02:31.3]} 25. Rfd1 {[%clk
0:02:49.5]} 25... R5e6 {[%clk 0:02:31.5]} 26. a4 {[%clk 0:02:46.9]} 26... Be5
{[%clk 0:02:28.4]} 27. a5 {[%clk 0:02:40.9]} 27... g4 {[%clk 0:02:27.9]} 28. g3
{[%clk 0:02:34.3]} 28... Rf6 {[%clk 0:02:26.9]} 29. Qe2 {[%clk 0:02:29.8]} 29...
h5 {[%clk 0:02:26.7]} 30. Qd2 {[%clk 0:02:23.4]} 30... Kg7 {[%clk 0:02:17.9]}
31. Rb1 {[%clk 0:02:22.7]} 31... h4 {[%clk 0:01:50.7]} 32. gxh4 {[%clk
0:02:17.2]} 32... Rh6 {[%clk 0:01:49.1]} 33. Bd5 {[%clk 0:02:10.7]} 33... Re8
{[%clk 0:01:44.3]} 34. Qe2 {[%clk 0:02:00.5]} 34... f3 {[%clk 0:01:41]} 35. Qd2
{[%clk 0:02:00.5]} 35... Qe7 {[%clk 0:01:34.5]} 36. h3 {[%clk 0:00:25.2]} 36...
Qxh4 {[%clk 0:01:32.5]} 37. Bxf7 {[%clk 0:00:21.4]} 37... Qxh3 {[%clk
0:01:22.1]} 38. Qg5+ {[%clk 0:00:21]} 38... Kxf7 {[%clk 0:01:22.5]} 39. Qf5+
{[%clk 0:00:21.2]} 39... Rf6 {[%clk 0:01:23.1]} 40. Qd7+ {[%clk 0:00:20.7]}
40... Re7 {[%clk 0:01:24.4]} 0-1

[Event "*** Titled Tuesday 3|2 Blitz"]
[Site "Chess.com"]
[Date "2015.11.03"]
[Round "7"]
[White "SerGo055"]
[Black "Blitzstream"]
[Result "1-0"]
[WhiteElo "2400"]
[BlackElo "2401"]
[TimeControl "180+2"]
[EndTime "12:30:35 PST"]
[Termination "SerGo055 won by checkmate"]

1. d4 {[%clk 0:02:50.3]} 1... d5 {[%clk 0:03:00.5]} 2. Nf3 {[%clk 0:02:50.5]}
2... Nf6 {[%clk 0:03:00.6]} 3. c4 {[%clk 0:02:52]} 3... c6 {[%clk 0:03:02]} 4.
Nc3 {[%clk 0:02:53.4]} 4... g6 {[%clk 0:02:58.4]} 5. Bf4 {[%clk 0:02:50.5]} 5...
Bg7 {[%clk 0:02:59.1]} 6. e3 {[%clk 0:02:50.4]} 6... O-O {[%clk 0:02:58.2]} 7.
Qb3 {[%clk 0:02:51.6]} 7... Nh5 {[%clk 0:02:37.2]} 8. Be5 {[%clk 0:02:51.5]}
8... f6 {[%clk 0:02:38.1]} 9. Bxb8 {[%clk 0:02:51.6]} 9... Rxb8 {[%clk
0:02:38.5]} 10. cxd5 {[%clk 0:02:50.1]} 10... Kh8 {[%clk 0:02:21]} 11. dxc6
{[%clk 0:02:35.5]} 11... e5 {[%clk 0:02:05.7]} 12. Be2 {[%clk 0:02:29]} 12...
Qc7 {[%clk 0:01:49.9]} 13. Nb5 {[%clk 0:01:57.9]} 13... Qxc6 {[%clk 0:01:23.7]}
14. Nxa7 {[%clk 0:01:58.3]} 14... Qe4 {[%clk 0:01:05]} 15. Nxc8 {[%clk
0:01:50.8]} 15... Rbxc8 {[%clk 0:01:06.9]} 16. O-O {[%clk 0:01:49.1]} 16... exd4
{[%clk 0:00:18.5]} 17. Nxd4 {[%clk 0:01:49.7]} 17... f5 {[%clk 0:00:19.9]} 18.
Bf3 {[%clk 0:01:50.7]} 18... Qh4 {[%clk 0:00:18.6]} 19. Ne6 {[%clk 0:01:29.1]}
19... Be5 {[%clk 0:00:18.5]} 20. g3 {[%clk 0:01:29.1]} 20... Nxg3 {[%clk
0:00:08.2]} 21. fxg3 {[%clk 0:01:29.9]} 21... Bxg3 {[%clk 0:00:10.1]} 22. hxg3
{[%clk 0:01:31.1]} 22... Qxg3+ {[%clk 0:00:12]} 23. Bg2 {[%clk 0:01:32.6]} 23...
Rfe8 {[%clk 0:00:13.3]} 24. Rf3 {[%clk 0:01:29.7]} 24... Qe5 {[%clk 0:00:14.2]}
25. Ng5 {[%clk 0:01:28.4]} 25... Qc5 {[%clk 0:00:10.8]} 26. Rh3 {[%clk
0:01:14.9]} 26... h5 {[%clk 0:00:10.9]} 27. Rd1 {[%clk 0:01:08.3]} 27... Rc7
{[%clk 0:00:07.7]} 28. Qc3+ {[%clk 0:01:04.6]} 28... Qxc3 {[%clk 0:00:08.5]} 29.
bxc3 {[%clk 0:01:06.2]} 29... Rxc3 {[%clk 0:00:09.8]} 30. Rd7 {[%clk 0:01:07.7]}
30... Rcxe3 {[%clk 0:00:10.8]} 31. Rxe3 {[%clk 0:01:07.9]} 31... Rxe3 {[%clk
0:00:12.7]} 32. Rh7+ {[%clk 0:00:55.3]} 32... Kg8 {[%clk 0:00:13.6]} 33. Bd5+
{[%clk 0:00:56.9]} 33... Kf8 {[%clk 0:00:14.9]} 34. Ne6+ {[%clk 0:00:55.3]}
34... Ke8 {[%clk 0:00:16.4]} 35. Rxb7 {[%clk 0:00:52.3]} 35... Re5 {[%clk
0:00:14.7]} 36. Bc6# {[%clk 0:00:52.9]} 1-0

[Event "*** Titled Tuesday 3|2 Blitz"]
[Site "Chess.com"]
[Date "2015.11.03"]
[Round "7"]
[White "BIG_Pirate"]
[Black "stefanodinn"]
[Result "0-1"]
[WhiteElo "2261"]
[BlackElo "2145"]
[TimeControl "180+2"]
[EndTime "12:31:01 PST"]
[Termination "stefanodinn won by resignation"]

1. Nf3 {[%clk 0:03:01.9]} 1... c5 {[%clk 0:02:58.4]} 2. c4 {[%clk 0:03:02.8]}
2... Nc6 {[%clk 0:02:58.4]} 3. Nc3 {[%clk 0:03:03.7]} 3... g6 {[%clk 0:02:58.1]}
4. g3 {[%clk 0:03:05]} 4... Bg7 {[%clk 0:02:58.2]} 5. Bg2 {[%clk 0:03:06.5]}
5... e6 {[%clk 0:02:57.7]} 6. O-O {[%clk 0:03:07.5]} 6... Nge7 {[%clk
0:02:57.7]} 7. d4 {[%clk 0:03:07.8]} 7... cxd4 {[%clk 0:02:50.3]} 8. Nb5 {[%clk
0:03:08.7]} 8... d5 {[%clk 0:02:32.2]} 9. cxd5 {[%clk 0:03:09.4]} 9... Nxd5
{[%clk 0:02:31.6]} 10. Nbxd4 {[%clk 0:03:10.2]} 10... Nxd4 {[%clk 0:02:29.8]}
11. Nxd4 {[%clk 0:03:12.1]} 11... O-O {[%clk 0:02:30.5]} 12. e4 {[%clk
0:03:12.6]} 12... Nb4 {[%clk 0:02:11.5]} 13. Be3 {[%clk 0:03:10.4]} 13... Bd7
{[%clk 0:02:11.9]} 14. Qb3 {[%clk 0:02:46]} 14... Nc6 {[%clk 0:02:10.8]} 15.
Rfd1 {[%clk 0:02:24.2]} 15... Qc8 {[%clk 0:01:49.3]} 16. Rac1 {[%clk 0:02:18.6]}
16... Bxd4 {[%clk 0:01:43.6]} 17. Rxc6 {[%clk 0:01:37]} 17... Bxc6 {[%clk
0:01:38.2]} 18. Bxd4 {[%clk 0:01:30.7]} 18... Rd8 {[%clk 0:01:37.6]} 19. h4
{[%clk 0:01:28.2]} 19... Qd7 {[%clk 0:01:10.9]} 20. Bf3 {[%clk 0:01:04.5]} 20...
Ba4 {[%clk 0:00:57.5]} 21. Bf6 {[%clk 0:00:35.5]} 21... Bxb3 {[%clk 0:00:39.8]}
22. Rxd7 {[%clk 0:00:35.9]} 22... Rxd7 {[%clk 0:00:40.2]} 23. axb3 {[%clk
0:00:37.8]} 23... Rd3 {[%clk 0:00:29.5]} 24. Kg2 {[%clk 0:00:36.3]} 24... Rxb3
{[%clk 0:00:29.3]} 25. h5 {[%clk 0:00:36.9]} 25... Re8 {[%clk 0:00:24.1]} 26.
Bd4 {[%clk 0:00:34.8]} 26... e5 {[%clk 0:00:22.6]} 27. Bc3 {[%clk 0:00:34.2]}
27... Rxc3 {[%clk 0:00:17]} 28. bxc3 {[%clk 0:00:35.7]} 28... Rc8 {[%clk
0:00:17.7]} 29. hxg6 {[%clk 0:00:33.3]} 29... hxg6 {[%clk 0:00:17.5]} 30. Be2
{[%clk 0:00:35.2]} 30... Rxc3 {[%clk 0:00:17.9]} 31. Kf1 {[%clk 0:00:36.4]}
31... f6 {[%clk 0:00:17.2]} 32. Ke1 {[%clk 0:00:37.4]} 32... Kf7 {[%clk
0:00:17.9]} 33. Kd2 {[%clk 0:00:39.3]} 33... Rc7 {[%clk 0:00:18.3]} 34. Bd1
{[%clk 0:00:39.2]} 34... Ke7 {[%clk 0:00:18.4]} 35. Bb3 {[%clk 0:00:41.1]} 35...
Kd6 {[%clk 0:00:18.5]} 36. f4 {[%clk 0:00:40.6]} 36... b5 {[%clk 0:00:18.4]} 37.
f5 {[%clk 0:00:39.2]} 37... gxf5 {[%clk 0:00:18.4]} 38. exf5 {[%clk 0:00:41.1]}
38... Rg7 {[%clk 0:00:18.7]} 0-1